[Event "Czech Extraliga 2023-24"]
[Site "Czech Republic"]
[Date "2024.04.07"]
[Round "11.1"]
[White "Korobov, Anton"]
[Black "Stocek, Jiri"]
[Result "1/2-1/2"]
[ECO "E10"]
[WhiteElo "2663"]
[BlackElo "2531"]
[Annotator "TA"]
[PlyCount "111"]
[EventDate "2023.10.14"]
[EventCountry "CZE"]
[SourceTitle "playchess.com"]
[Source "ChessBase"]
[SourceQuality "1"]
[TimeControl "40/5400+30:1800+30"]

{[%evp 35,111,37,38,33,54,49,47,40,40,28,40,35,54,44,103,97,107,115,138,129,135,145,147,152,146,96,105,93,88,83,102,70,113,99,110,106,113,111,115,107,152,132,244,223,239,86,100,100,78,78,100,82,75,19,29,18,10,10,10,0,0,0,8,8,8,12,109,0,0,0,0,0,0,0,0,0,0,0]} 1. d4 {[%emt 0:00:03]} Nf6 {[%emt 0:00:31]} 2. c4 {[%emt 0:00:08]} e6 {[%emt 0:00:04]} 3. Nf3 {[%emt 0:00:05]} h6 {[%emt 0:00:54]} 4. g3 {[%emt 0:01:47]} Bb4+ {[%emt 0:03:50]} 5. Bd2 {[%emt 0:02:55]} a5 {[%emt 0:03:47]} 6. Bg2 {[%emt 0:01:50] E10: Blumenfeld Gambit.} O-O {[%emt 0:00:33]} 7. O-O {[%emt 0:00:29]} d5 {[%emt 0:03:40]} 8. Qc2 {[%emt 0:02:32]} Re8 $146 {[%emt 0:05:21]} ({Predecessor:} 8... Nc6 9. a3 Be7 10. Bf4 a4 11. Rd1 Bd7 12. Nbd2 Nh5 13. Be3 Na5 14. Ne5 Be8 {0-1 Sharma,D (2203)-Das,S (2489) IND-ch 60th Pune 2023 (11)}) 9. a3 {[%emt 0:09:06]} Bf8 {[%emt 0:00:30]} 10. Nc3 {[%emt 0:00:31]} Na6 {[%emt 0:22:37]} 11. c5 {[%emt 0:05:13]} c6 {[%emt 0:02:12]} 12. Na4 {[%emt 0:04:25]} Nd7 {[%emt 0:02:10]} 13. Ne5 {[%emt 0:03:50]} Nab8 {[%emt 0:00:30]} 14. Nd3 {[%emt 0:07:45]} b5 {[%emt 0:05:13]} 15. cxb6 {[%emt 0:10:18]} Nxb6 {[%emt 0:00:45]} 16. Nac5 {[%emt 0:02:57]} N8d7 {[%emt 0:06:11]} 17. Nxd7 {[%emt 0:00:59]} Bxd7 {[%emt 0:00:05]} 18. a4 {[%emt 0:00:52]} Nc4 {[%emt 0:01:59]} 19. Bc3 {[%emt 0:03:06]} Qb6 {[%emt 0:02:25]} 20. b3 {[%emt 0:05:41]} Nd6 $1 {[%emt 0:02:43]} 21. Rab1 {[%emt 0:00:04]} Nf5 {[%emt 0:02:47]} 22. Qd2 {[%emt 0:04:27]} Qa7 {[%emt 0:05:17]} (22... Nxd4 $2 {perishes.} 23. Ne5 Nxe2+ 24. Qxe2 $18) 23. e3 {[%emt 0:00:50]} Bc8 {[%emt 0:07:44]} 24. Rfc1 {[%emt 0:00:31]} Ba6 {[%emt 0:00:23]} ({Black should play} 24... Qc7 $14) 25. Ne5 $16 {[%emt 0:01:44]} (25. Bxa5 $2 {loses.} Bxd3 26. Qxd3 Qxa5 $19) 25... Bb7 {[%emt 0:00:12]} 26. b4 {[%emt 0:01:46]} Nd6 {[%emt 0:02:47]} 27. bxa5 {[%emt 0:02:46]} f6 {[%emt 0:05:05]} 28. Nd7 {[%emt 0:01:50]} Nc4 {[%emt 0:00:15]} 29. Qe1 {[%emt 0:01:07]} Ba6 {[%emt 0:01:57]} 30. Nxf8 {[%emt 0:05:10]} ({White should try} 30. Nb6 $1) 30... Rxf8 {[%emt 0:00:05]} 31. Bf1 {[%emt 0:02:12]} Rfe8 {[%emt 0:01:49]} 32. Qd1 {[%emt 0:01:59]} Qd7 {[%emt 0:01:11]} 33. Qg4 {[%emt 0:01:55]} Na3 {[%emt 0:02:19] [#]} 34. Rb3 $1 {[%emt 0:00:51]} Bxf1 {[%emt 0:00:08]} 35. Rxf1 {[%emt 0:00:30]} Nc4 {[%emt 0:00:15]} 36. Rfb1 {[%emt 0:00:06]} f5 {[%emt 0:00:45]} 37. Qf4 {[%emt 0:04:18]} g5 {[%emt 0:03:17] [#]} 38. Qf3 $1 {[%emt 0:00:31]} Re7 {[%emt 0:00:24]} (38... Qf7 $16 39. Qd1 Kg7) 39. Qh5 {[%emt 0:02:49]} Kg7 {[%emt 0:00:43]} 40. h4 $2 {[%emt 0:01:18]} (40. a6 $18 {has better winning chances. And now Rb7 would win.} Rxa6 41. Rb8) 40... Qe8 $16 {[%emt 0:05:13]} 41. Qxe8 {[%emt 0:30:18]} Rexe8 {[%emt 0:30:15]} 42. h5 {[%emt 0:01:58]} g4 {[%emt 0:00:00]} 43. Rb7+ {[%emt 0:00:00]} Kf6 {[%emt 0:00:00]} 44. Bb4 {[%emt 0:00:00]} ({Better is} 44. Kg2 $16) 44... Nxa5 $11 {[%emt 0:00:00]} 45. Bxa5 {[%emt 0:00:00]} Rxa5 {[%emt 0:00:00]} 46. Rh7 {[%emt 0:00:00]} Rxa4 {[%emt 0:00:00]} 47. Rxh6+ {[%emt 0:00:00]} Kg5 {[%emt 0:00:00]} 48. Rh7 {[%emt 0:00:00]} c5 {[%emt 0:00:00]} 49. dxc5 {[%emt 0:00:00]} Rc4 {[%emt 0:00:00]} 50. Rbb7 {[%emt 0:00:00]} Rxc5 {[%emt 0:00:00]} (50... Rg8 $1 $11 {remains equal.}) 51. Kg2 {[%emt 0:00:00]} (51. Rbg7+ $16 Kf6 52. Rg6+ Ke5 53. h6) 51... Rg8 $11 {[%emt 0:01:25]} 52. Rb6 {[%emt 0:00:57]} Re8 {[%emt 0:00:09]} 53. Rbb7 {[%emt 0:04:25]} Rg8 {[%emt 0:00:11]} 54. h6 {[%emt 0:00:37]} Rg6 {[%emt 0:02:32]} 55. Rbg7 {[%emt 0:00:33]} Rc8 {[%emt 0:01:13]} 56. Rxg6+ {[%emt 0:00:26]} 1/2-1/2

[Event "Czech Extraliga 2023-24"]
[Site "Czech Republic"]
[Date "2024.04.07"]
[Round "11.1"]
[White "Nabaty, Tamir"]
[Black "Warakomski, Tomasz"]
[Result "0-1"]
[ECO "A45"]
[WhiteElo "2643"]
[BlackElo "2539"]
[Annotator "TA"]
[PlyCount "68"]
[EventDate "2023.10.14"]
[EventCountry "CZE"]
[SourceTitle "playchess.com"]
[Source "ChessBase"]
[SourceQuality "1"]
[TimeControl "40/5400+30:1800+30"]

{[%evp 9,68,0,0,-5,5,-1,29,33,41,-4,0,0,0,-11,20,8,14,0,41,0,0,-23,-16,-70,-72,-69,-40,-48,-96,-195,-177,-197,-196,-198,-196,-206,-204,-183,0,0,0,0,0,0,0,0,0,-101,-160,-534,-549,-734,-732,-1060,-1030,-29993,-29994,-29994,-29995,-29995,-29996]} 1. d4 {[%emt 0:00:03]} Nf6 {[%emt 0:00:06]} 2. Bf4 {[%emt 0:00:03]} c5 {[%emt 0:01:55]} 3. d5 {[%emt 0:00:25]} b5 {[%emt 0:03:38]} 4. f3 {[%emt 0:00:20]} d6 {[%emt 0:04:38]} 5. e4 {[%emt 0:00:28]} a6 $1 {[%emt 0:00:11]} 6. a4 {[%emt 0:01:15]} b4 {[%emt 0:00:37]} 7. Bc4 {[%emt 0:15:34]} g6 {[%emt 0:03:55]} 8. c3 {[%emt 0:02:50] White has an edge.} bxc3 {[%emt 0:13:59]} 9. Nxc3 {[%emt 0:05:27]} Bg7 {[%emt 0:00:29]} 10. Nge2 {[%emt 0:00:47]} Nbd7 {[%emt 0:01:52]} 11. Qd2 {[%emt 0:03:20]} Qa5 {[%emt 0:01:08]} 12. O-O {[%emt 0:05:29]} Rb8 {[%emt 0:01:15]} 13. b3 {[%emt 0:01:19]} h6 {[%emt 0:02:07]} 14. Rac1 {[%emt 0:06:01]} g5 {[%emt 0:10:50]} 15. Be3 {[%emt 0:03:21]} Ne5 {[%emt 0:00:05]} 16. Ng3 {[%emt 0:04:41]} (16. Rb1 $11) 16... Nxc4 $15 {[%emt 0:03:01]} 17. bxc4 {[%emt 0:03:42][%cal Oe4e5]} Rb3 {[%emt 0:00:13]} (17... Nd7 {simplifies} 18. Qc2 Bxc3 19. Qxc3 Qxc3 20. Rxc3 f6) 18. e5 {[%emt 0:02:01]} Nd7 {[%emt 0:03:06]} 19. f4 {[%emt 0:30:35]} (19. exd6 $17 {was called for.} Bxc3 20. Qe2) 19... gxf4 $19 {[%emt 0:01:56]} (19... dxe5 $2 20. Nf5 (20. fxg5 e4 $16) 20... Bf8 21. fxg5 hxg5 22. Qd1 $18 (22. Bxg5 Qb4 $18)) 20. Bxf4 {[%emt 0:00:47]} Bxe5 {[%emt 0:00:38]} (20... dxe5 $2 21. Nf5 Bf6 22. Bxh6 $18) 21. Bxe5 {[%emt 0:00:41]} Nxe5 {[%emt 0:00:06]} 22. Qf4 {[%emt 0:00:16]} Kd8 {[%emt 0:10:03][%cal Oe5d3] White must now prevent ...Nd3!} (22... Rxc3 23. Qd2 $11) 23. Nce4 {[%emt 0:00:48][%cal Oe4d6]} Nd3 $2 {[%emt 0:04:00]} (23... Qxa4 $2 24. Nxc5 $18) (23... Kc7 $19 {[%cal Oc8d7] aiming for ...Bd7!} 24. Nd2 Rc3) 24. Qh4 $11 {[%emt 0:02:58]} Nxc1 {[%emt 0:04:21]} (24... Qxa4 25. Nxd6 Rb2 26. Nxf7+ Kc7 27. Qxe7+ (27. Nxh8 Qa2 $18) 27... Qd7 28. Qe4 $18) 25. Nxd6 {[%emt 0:00:11]} Rh7 {[%emt 0:00:53]} 26. Nxc8 {[%emt 0:03:35]} Kxc8 {[%emt 0:00:40]} 27. Qxe7 {[%emt 0:01:40] Nf5 would now be deadly.} Nd3 {[%emt 0:10:48][%cal Oa5c7]} 28. Ne4 {[%emt 0:03:50] [#]} (28. Nf5 $11 {was the only way to keep the balance.}) 28... Rh8 $1 $17 {[%emt 0:02:05] Hoping for ...Qc7.} (28... Qxa4 29. Qf8+ Kb7 30. Qg8 $18 (30. Nxc5+ $2 Nxc5 31. Qg8 Qxc4 $19)) 29. Nd6+ $2 {[%emt 0:01:23]} (29. Qa7 $17 {was the crucial defense.} Rd8 (29... Qxa4 $2 30. Nd6+ Kd8 31. Nxf7+ Kc8 32. Nd6+ Kd8 33. Qa8+ Kc7 34. Qxh8 $18) 30. Qa8+ Rb8 31. Qc6+ Qc7 32. Qxa6+ Rb7 33. Qa8+ Qb8 34. Qa6) 29... Kb8 $19 {[%emt 0:00:04]} 30. Nxf7 {[%emt 0:00:17] [#]} Qc3 {[%emt 0:03:24]} 31. h3 {[%emt 0:01:09]} (31. Qe3 Rf8) 31... Rg8 {[%emt 0:03:27][%cal Og8g2] ( -> ...Rxg2+!)} 32. Nd8 {[%emt 0:00:35] [#]} Rxg2+ $3 {[%emt 0:01:06][%mdl 512] Black mates.} 33. Kxg2 {[%emt 0:00:36] [#]} Nf4+ $1 {[%emt 0:00:08][%mdl 512]} 34. Rxf4 {[%emt 0:00:28]} Qg3+ {[%emt 0:00:10] Weighted Error Value: White=0.97/Black=0.13 (very precise) .  Loses game:     	White=1     	---        Missed win:     	---       	Black=1      Mistake:       	White=3     	---        Inaccurate:     	White=4     	Black=4      OK:         	White=7     	Black=11     Best:        	White=2     	Black=2      Strong:       	---       	Black=1} 0-1

[Event "Czech Extraliga 2023-24"]
[Site "Czech Republic"]
[Date "2024.04.07"]
[Round "11.1"]
[White "Teclaf, Pawel"]
[Black "Haring, Filip"]
[Result "1/2-1/2"]
[ECO "A25"]
[WhiteElo "2570"]
[BlackElo "2432"]
[Annotator "TA"]
[PlyCount "81"]
[EventDate "2023.10.14"]
[EventCountry "CZE"]
[SourceTitle "playchess.com"]
[Source "ChessBase"]
[SourceQuality "1"]
[TimeControl "40/5400+30:1800+30"]

{[%evp 11,81,4,7,-4,36,18,19,22,31,7,24,24,27,15,7,0,0,2,0,0,52,47,58,33,54,8,55,25,112,114,117,109,122,118,110,146,108,138,133,112,185,147,169,95,153,109,120,0,0,0,18,0,0,0,7,0,0,0,0,0,0,0,0,0,0,0,0,0,0,0,0,0]} 1. c4 {[%emt 0:00:03]} e5 {[%emt 0:00:14]} 2. g3 {[%emt 0:00:16]} Nc6 {[%emt 0:03:07]} 3. Bg2 {[%emt 0:00:48]} g6 {[%emt 0:00:49]} 4. Nc3 {[%emt 0:01:37]} Bg7 {[%emt 0:00:22]} 5. Rb1 {[%emt 0:00:38]} a5 {[%emt 0:01:09]} 6. a3 {[%emt 0:02:54]} Nf6 {[%emt 0:08:10]} 7. d3 {[%emt 0:03:46]} h6 {[%emt 0:05:30]} 8. b4 {[%emt 0:04:58]} axb4 {[%emt 0:00:09]} 9. axb4 {[%emt 0:00:05]} O-O {[%emt 0:00:20]} 10. e3 {[%emt 0:05:51]} d6 {[%emt 0:04:08]} 11. Nge2 {[%emt 0:01:05]} h5 {[%emt 0:00:13]} 12. h3 {[%emt 0:02:50]} Ne7 {[%emt 0:03:37]} 13. Qb3 {[%emt 0:03:21]} c6 {[%emt 0:07:04]} 14. b5 {[%emt 0:02:12]} Be6 {[%emt 0:05:46]} 15. O-O {[%emt 0:04:50]} h4 {[%emt 0:08:03]} 16. g4 $14 {[%emt 0:01:37]} Nh7 {[%emt 0:00:03]} 17. f4 {[%emt 0:03:37]} f5 {[%emt 0:05:28]} 18. g5 {[%emt 0:01:11]} (18. gxf5 $14 Rxf5 19. Bd2) 18... Qa5 {[%emt 0:06:53]} (18... Bf7 $11) 19. Bd2 {[%emt 0:04:58]} Rfd8 {[%emt 0:06:05] [#]} (19... Qa3 $11 {remains equal.}) 20. bxc6 $1 $16 {[%emt 0:02:45]} bxc6 {[%emt 0:02:51] [#]} 21. Nd5 $1 {[%emt 0:02:09][%mdl 512]} Qa7 {[%emt 0:02:48] [#]} 22. Ra1 $1 {[%emt 0:05:20][%mdl 512] White is more active.} Qd7 {[%emt 0:00:47]} 23. Nxe7+ {[%emt 0:01:24]} Qxe7 {[%emt 0:00:03]} 24. Rxa8 {[%emt 0:00:07]} (24. Bxc6 Rab8 25. Qa3 exf4 26. exf4 Qc7 $14) 24... Rxa8 {[%emt 0:00:06]} 25. Bxc6 {[%emt 0:00:04]} Rc8 {[%emt 0:00:35]} (25... Ra6 $16 26. Bb7 Ra7) 26. Qb7 $18 {[%emt 0:08:54]} Rc7 {[%emt 0:04:49]} 27. Qb5 {[%emt 0:00:14]} (27. Qb6 $18) 27... exf4 {[%emt 0:04:53]} (27... Bf7 $142) 28. exf4 {[%emt 0:01:54]} Bd7 {[%emt 0:00:10] [#]} 29. Bxd7 {[%emt 0:07:58]} (29. Qd5+ $1 $16 Qf7 30. Bxd7 (30. Qxd6 $2 Rxc6 31. Qb8+ Nf8 $19) (30. Qxf7+ Kxf7 31. Bd5+ Be6 $16) 30... Rxd7 31. Nc3 (31. Qxf7+ Kxf7 32. Be3 Nf8 $16)) 29... Qxe2 $11 {[%emt 0:07:13] The position is equal.} 30. Be1 {[%emt 0:13:52] Threatens to win with Qb8+.} (30. Qd5+ Kh8 31. Qa8+ (31. Qxd6 $2 Qxd2 32. Bc6 Qe3+ 33. Kh2 Qg3+ 34. Kh1 Qxh3+ 35. Kg1 Qg3+ 36. Kh1 Nf8 $19) 31... Nf8 $17) 30... Qxd3 {[%emt 0:06:13]} 31. Bc6 {[%emt 0:03:50]} (31. Bxh4 $2 {is the wrong capture.} Bd4+ 32. Kg2 Qe4+ 33. Rf3 Nf8 34. Bxf5 (34. Be8 $2 Rc8 $19) 34... gxf5 35. Qd5+ Ne6 $19) 31... Bd4+ {[%emt 0:01:52]} 32. Kg2 {[%emt 0:01:55] Black must now prevent Qb8+.} Re7 {[%emt 0:00:03] ( -> ...Re2+)} 33. Bf2 {[%emt 0:00:05] Chess con chili.} Bxf2 {[%emt 0:06:49]} 34. Qd5+ {[%emt 0:00:02]} Qxd5+ {[%emt 0:00:07]} 35. Bxd5+ {[%emt 0:00:03]} Kg7 {[%emt 0:00:08]} 36. Kxf2 {[%emt 0:01:31]} Nf8 $1 {[%emt 0:00:09]} 37. Ra1 {[%emt 0:00:07]} Nd7 $1 {[%emt 0:01:13]} 38. Ra7 {[%emt 0:04:45] aiming for Bc6.} Kf8 {[%emt 0:00:19]} 39. Ra8+ {[%emt 0:01:40]} Re8 {[%emt 0:01:00]} 40. Ra6 {[%emt 0:01:23]} Nc5 $1 {[%emt 0:00:08]} 41. Rxd6 {[%emt 0:32:20] Weighted Error Value: White=0.14 (very precise) /Black=0.16 (very precise) .  Mistake:       	White=3     	Black=5      Inaccurate:     	White=1     	Black=1      OK:         	White=8     	Black=8      Best:        	White=2     	Black=6      Strong:       	White=1     	Black=3      Brilliant:      	White=1     	---} 1/2-1/2

[Event "Czech Extraliga 2023-24"]
[Site "Czech Republic"]
[Date "2024.04.07"]
[Round "11.1"]
[White "Kobo, Ori"]
[Black "Gumularz, Szymon"]
[Result "1/2-1/2"]
[ECO "A30"]
[WhiteElo "2530"]
[BlackElo "2591"]
[Annotator "TA"]
[PlyCount "52"]
[EventDate "2023.10.14"]
[EventCountry "CZE"]
[SourceTitle "playchess.com"]
[Source "ChessBase"]
[SourceQuality "1"]
[TimeControl "40/5400+30:1800+30"]

{[%evp 23,52,22,34,27,30,27,39,35,31,36,31,27,43,0,0,-8,0,0,21,12,19,18,12,8,14,0,9,0,19,24,21]} 1. Nf3 {[%emt 0:00:07]} Nf6 {[%emt 0:00:42]} 2. c4 {[%emt 0:00:18]} b6 {[%emt 0:02:38]} 3. g3 {[%emt 0:00:52]} Bb7 {[%emt 0:00:09]} 4. Bg2 {[%emt 0:00:13]} c5 {[%emt 0:00:31]} 5. O-O {[%emt 0:02:29]} g6 {[%emt 0:00:08]} 6. b3 {[%emt 0:01:15]} Bg7 {[%emt 0:00:11]} 7. Bb2 {[%emt 0:00:07]} O-O {[%emt 0:00:25]} 8. d4 {[%emt 0:00:24]} cxd4 {[%emt 0:00:28]} 9. Qxd4 {[%emt 0:00:44]} d6 {[%emt 0:00:23]} 10. Nc3 {[%emt 0:00:30]} Nbd7 {[%emt 0:00:10]} 11. Rfd1 {[%emt 0:09:05]} Rc8 {[%emt 0:00:57]} 12. Rac1 {[%emt 0:16:21]} a6 {[%emt 0:00:13]} 13. Ne1 {[%emt 0:01:08][%cal Bf3e1,Be1g2,Bg2e3,Be3d5][%mdl 32]} Bxg2 {[%emt 0:01:56]} 14. Nxg2 {[%emt 0:02:20]} Re8 {[%emt 0:07:40]} 15. Ne3 {[%emt 0:01:56] White is slightly better.} Qc7 {[%emt 0:18:37]} 16. Ncd5 {[%emt 0:05:40]} Qb7 {[%emt 0:01:26]} 17. Ba1 {[%emt 0:01:14]} b5 {[%emt 0:07:43]} 18. Qh4 {[%emt 0:12:23]} bxc4 {[%emt 0:09:06]} 19. bxc4 {[%emt 0:00:16]} Nxd5 {[%emt 0:05:00]} 20. Nxd5 {[%emt 0:04:38] [#] And now Rb1 would win.} Nc5 {[%emt 0:00:28]} 21. Bxg7 {[%emt 0:02:01]} Kxg7 {[%emt 0:00:06]} 22. Rb1 {[%emt 0:07:56]} Qa7 {[%emt 0:00:14]} 23. Qd4+ {[%emt 0:00:30]} f6 {[%emt 0:00:15]} 24. Rb3 {[%emt 0:01:04]} Rf8 {[%emt 0:08:25]} 25. Rdb1 {[%emt 0:05:27][%cal Ob3b7]} Rf7 {[%emt 0:01:31]} 26. Rb4 {[%emt 0:06:09]} Re8 {[%emt 0:14:58] Weighted Error Value: White=0.07 (flawless) /Black=0.07 (flawless) .  Inaccurate:     	White=1     	---        OK:         	White=5     	Black=5} 1/2-1/2

[Event "Czech Extraliga 2023-24"]
[Site "Czech Republic"]
[Date "2024.04.07"]
[Round "11.1"]
[White "Sahidi, Samir"]
[Black "Gelfand, Boris"]
[Result "1/2-1/2"]
[ECO "D43"]
[WhiteElo "2478"]
[BlackElo "2661"]
[Annotator "TA"]
[PlyCount "76"]
[EventDate "2023.10.14"]
[EventCountry "CZE"]
[SourceTitle "playchess.com"]
[Source "ChessBase"]
[SourceQuality "1"]
[TimeControl "40/5400+30:1800+30"]

{[%evp 23,76,0,0,-13,5,0,0,0,-2,-11,0,-21,-21,-15,-11,-21,0,0,0,-8,-7,0,0,0,0,0,0,0,0,0,0,-18,0,-5,0,-4,0,-7,0,0,0,0,0,0,0,0,0,0,0,0,0,0,0,0,0]} 1. d4 {[%emt 0:00:09]} Nf6 {[%emt 0:00:03]} 2. c4 {[%emt 0:00:14]} e6 {[%emt 0:00:03]} 3. Nf3 {[%emt 0:00:35]} d5 {[%emt 0:00:04]} 4. Nc3 {[%emt 0:00:57]} c6 {[%emt 0:00:23]} 5. Bg5 {[%emt 0:02:12]} h6 {[%emt 0:02:24]} 6. Bxf6 {[%emt 0:01:01]} Qxf6 {[%emt 0:00:28]} 7. e3 {[%emt 0:00:06]} Nd7 {[%emt 0:00:25]} 8. Bd3 {[%emt 0:02:39]} dxc4 {[%emt 0:00:49]} 9. Bxc4 {[%emt 0:00:07]} g6 {[%emt 0:00:02]} 10. O-O {[%emt 0:02:19]} Bg7 {[%emt 0:00:12]} 11. Rc1 {[%emt 0:03:24]} O-O {[%emt 0:04:41]} 12. Qe2 {[%emt 0:02:07]} Qe7 {[%emt 0:01:35] The position is equal.} 13. Rfd1 {[%emt 0:06:12]} a6 {[%emt 0:02:07]} 14. Ne4 {[%emt 0:04:20]} b6 {[%emt 0:01:05]} 15. h4 {[%emt 0:09:20]} Bb7 {[%emt 0:02:29]} 16. Bd3 {[%emt 0:05:06]} Rfd8 {[%emt 0:10:24]} 17. Ng3 {[%emt 0:06:22]} a5 {[%emt 0:03:44]} 18. Rd2 {[%emt 0:08:53]} c5 {[%emt 0:14:13]} 19. Be4 {[%emt 0:06:14]} Bxe4 {[%emt 0:01:58]} 20. Nxe4 {[%emt 0:00:09]} cxd4 {[%emt 0:00:08]} 21. exd4 {[%emt 0:03:07]} Rac8 {[%emt 0:08:07]} 22. Rxc8 {[%emt 0:05:04]} Rxc8 {[%emt 0:00:41]} 23. Rc2 {[%emt 0:00:15]} Qf8 {[%emt 0:07:02]} 24. g3 {[%emt 0:01:21]} Nf6 {[%emt 0:02:28]} 25. Rxc8 {[%emt 0:05:47]} Qxc8 {[%emt 0:00:48]} 26. Nxf6+ {[%emt 0:03:43]} Bxf6 $11 {[%emt 0:00:15][%mdl 4096] Endgame. KQB-KQN} 27. Qb5 {[%emt 0:03:43]} Qd8 {[%emt 0:05:23]} 28. Qc4 {[%emt 0:03:15]} Qd6 {[%emt 0:07:07]} 29. Kg2 {[%emt 0:03:24]} Kg7 {[%emt 0:03:03]} 30. b3 {[%emt 0:00:31]} g5 {[%emt 0:04:09]} 31. hxg5 {[%emt 0:01:28]} hxg5 {[%emt 0:00:39]} 32. a4 {[%emt 0:05:08]} g4 {[%emt 0:04:57]} 33. Nh2 {[%emt 0:02:21]} Qxd4 {[%emt 0:02:25]} 34. Nxg4 {[%emt 0:01:49]} Qxc4 {[%emt 0:00:26]} 35. bxc4 {[%emt 0:00:05]} Bd4 {[%emt 0:00:02]} 36. f4 {[%emt 0:03:21]} f5 {[%emt 0:02:25]} 37. Nf2 {[%emt 0:00:40]} Bxf2 {[%emt 0:02:08]} 38. Kxf2 {[%emt 0:00:06]} Kf6 {[%emt 0:00:05] Not much happened in this game.   Weighted Error Value: White=0.03 (flawless) /Black=0.03 (flawless) .  OK:         	White=12    	Black=6} 1/2-1/2

[Event "Czech Extraliga 2023-24"]
[Site "Czech Republic"]
[Date "2024.04.07"]
[Round "11.2"]
[White "Saric, Ivan"]
[Black "Sulypa, Oleksandr"]
[Result "1-0"]
[ECO "B13"]
[WhiteElo "2689"]
[BlackElo "2449"]
[Annotator "TA"]
[PlyCount "59"]
[EventDate "2023.10.14"]
[EventCountry "CZE"]
[SourceTitle "playchess.com"]
[Source "ChessBase"]
[SourceQuality "1"]
[TimeControl "40/5400+30:1800+30"]

{[%evp 12,59,31,35,44,0,28,29,27,34,39,18,20,22,31,35,26,20,57,0,1,6,12,0,10,21,30,23,26,25,22,26,45,4,11,17,53,38,33,33,225,234,430,429,414,414,416,400,549,541]} 1. d4 {[%emt 0:00:05]} d5 {[%emt 0:00:59]} 2. Nf3 {[%emt 0:00:05]} Nf6 {[%emt 0:02:20]} 3. Bf4 {[%emt 0:00:05]} c5 {[%emt 0:01:29]} 4. e3 {[%emt 0:00:04]} Nc6 {[%emt 0:00:06]} 5. Nbd2 {[%emt 0:00:03]} cxd4 {[%emt 0:08:50]} 6. exd4 {[%emt 0:00:04]} Bg4 {[%emt 0:01:45]} 7. c3 {[%emt 0:01:04]} a6 {[%emt 0:01:31]} 8. h3 {[%emt 0:03:25]} Bxf3 {[%emt 0:07:43]} 9. Qxf3 {[%emt 0:08:16]} e6 {[%emt 0:00:49] White has an edge.} 10. Bd3 {[%emt 0:00:04]} Bd6 {[%emt 0:03:51]} 11. O-O {[%emt 0:00:17]} Bxf4 {[%emt 0:04:05]} 12. Qxf4 {[%emt 0:00:04]} Qb8 {[%emt 0:01:56]} 13. Qg5 {[%emt 0:01:39]} O-O {[%emt 0:02:17]} 14. Rae1 {[%emt 0:00:26]} h6 {[%emt 0:04:13]} 15. Qh4 {[%emt 0:01:25]} (15. Qe3 $1 $14) 15... e5 $1 $11 {[%emt 0:00:50]} 16. dxe5 {[%emt 0:02:03]} Nxe5 {[%emt 0:00:39][%cal Bc6e5,Be5c4,Bc4d2][%mdl 32]} 17. Bc2 {[%emt 0:11:38]} Re8 {[%emt 0:02:58]} 18. Nb3 {[%emt 0:09:06][%cal Bd2b3,Bb3d4,Bd4f5][%mdl 32]} Nc4 {[%emt 0:12:14]} 19. Nd4 {[%emt 0:00:18]} Nd2 {[%emt 0:03:58]} 20. Rxe8+ {[%emt 0:00:09]} Qxe8 {[%emt 0:00:06]} 21. Rd1 {[%emt 0:00:04][%cal Od4f5] Nf5! would now be deadly.} Nc4 {[%emt 0:00:40]} 22. Nf5 {[%emt 0:20:19][%cal Of5h6]} (22. Qg3 {simplifies} Qb8 23. Qxb8+ Rxb8 24. b3) 22... Qe2 {[%emt 0:02:39] [#]} (22... Qe5 {simplifies} 23. Qg3 Qxg3 24. Nxg3 Rc8) 23. Qg3 $1 {[%emt 0:01:15][%csl LRg7,LRh6]} Nh5 {[%emt 0:04:19]} (23... g6 24. Bb3) 24. Nxh6+ {[%emt 0:03:43]} Kf8 {[%emt 0:00:07]} 25. Qg4 $40 {[%emt 0:00:26][%mdl 128] White attacks. Dancing on a razor blade.} Qxc2 {[%emt 0:01:22] This move loses the game for Black.} ({Black should try} 25... Re8 $1 $14 26. Nxf7 (26. Rxd5 Nf6 $11) 26... Nf6 27. Qxe2 Rxe2) 26. Qxh5 $18 {[%emt 0:00:05][%csl Gh6][%cal Rh5f7]} gxh6 $2 {[%emt 0:00:27]} (26... Qg6 {was called for.} 27. Qxd5 Qxh6) 27. Qxh6+ {[%emt 0:00:07]} Ke7 {[%emt 0:02:38]} 28. Qg5+ {[%emt 0:07:29]} Kf8 {[%emt 0:02:22]} 29. Rxd5 {[%emt 0:00:10] [#] Black must now prevent Qh6+.} Qe4 {[%emt 0:17:14]} 30. b3 {[%emt 0:00:31] Weighted Error Value: White=0.09 (flawless) /Black=0.40.  Loses game:     	---       	Black=1      Mistake:       	White=1     	Black=1      Inaccurate:     	White=2     	Black=4      OK:         	White=11    	Black=6      Best:        	White=2     	Black=1      Strong:       	---       	Black=1} 1-0

[Event "Czech Extraliga 2023-24"]
[Site "Czech Republic"]
[Date "2024.04.07"]
[Round "11.2"]
[White "Michalik, Peter"]
[Black "Kempinski, Robert"]
[Result "1/2-1/2"]
[ECO "E18"]
[WhiteElo "2571"]
[BlackElo "2558"]
[Annotator "RC"]
[PlyCount "26"]
[EventDate "2023.10.14"]
[EventCountry "CZE"]
[SourceTitle "playchess.com"]
[Source "ChessBase"]
[SourceQuality "1"]
[TimeControl "40/5400+30:1800+30"]

1. d4 {[%emt 0:00:03]} Nf6 {[%emt 0:00:12]} 2. c4 {[%emt 0:00:07]} e6 {[%emt 0:00:15]} 3. Nf3 {[%emt 0:00:06]} b6 {[%emt 0:00:21]} 4. g3 {[%emt 0:00:17]} Bb7 {[%emt 0:00:27]} 5. Bg2 {[%emt 0:00:08]} Be7 {[%emt 0:00:58]} 6. O-O {[%emt 0:00:14]} O-O {[%emt 0:00:08]} 7. Nc3 {[%emt 0:00:24]} Ne4 {[%emt 0:00:22]} 8. Nxe4 {[%emt 0:00:31]} Bxe4 {[%emt 0:00:09]} 9. Ne1 {[%emt 0:00:33]} Bxg2 {[%emt 0:01:25]} 10. Nxg2 {[%emt 0:00:08]} Re8 {[%emt 0:04:02]} 11. e4 {[%emt 0:03:57]} d5 {[%emt 0:00:08]} 12. exd5 {[%emt 0:03:26]} exd5 {[%emt 0:00:09]} 13. Qf3 {[%emt 0:00:13]} Nc6 {[%emt 0:05:41]} 1/2-1/2